[Event "ISR Youth-Ch Finals 2021 U18"]
[Site "Ramat Hasharon"]
[Date "2021.03.23"]
[Round "5.7"]
[White "Stolyarsky, Yegor"]
[Black "Iliaguev, Daniel"]
[Result "0-1"]
[ECO "E72"]
[WhiteElo "2063"]
[BlackElo "2103"]
[Annotator "NA"]
[PlyCount "186"]
[EventDate "2021.03.19"]
[EventType "swiss"]
[EventCountry "ISR"]
[SourceTitle "playchess.com"]
[Source "ChessBase"]
[SourceQuality "1"]
[TimeControl "5400+30"]

1. Nf3 {[%emt 0:00:40]} c5 {[%emt 0:07:41]} 2. c4 {[%emt 0:00:22]} g6 {[%emt 0:00:07]} 3. d4 {[%emt 0:00:47]} cxd4 {[%emt 0:01:17]} 4. Nxd4 {[%emt 0:00:11]} Bg7 {[%emt 0:00:10]} 5. Nc3 {[%emt 0:01:05]} Nf6 {[%emt 0:03:34]} 6. e4 {[%emt 0:01:11]} d6 {[%emt 0:01:02]} 7. g3 {[%emt 0:01:50]} O-O {[%emt 0:00:59]} 8. Bg2 {[%emt 0:00:32]} Nc6 {[%emt 0:04:46]} 9. Nxc6 {[%emt 0:03:27]} bxc6 {[%emt 0:00:09]} 10. e5 {[%emt 0:00:28]} Ng4 {[%emt 0:04:51]} 11. exd6 {[%emt 0:00:33]} exd6 {[%emt 0:00:20]} 12. O-O {[%emt 0:00:33]} Ne5 {[%emt 0:00:04]} 13. Qa4 {[%emt 0:11:16]} Be6 {[%emt 0:25:08]} 14. Rd1 {[%emt 0:06:29]} Bg4 {[%emt 0:03:52]} ({Of course not} 14... Bxc4 $6 15. Bxc6 Rb8 16. Bg2 $15) 15. Bf4 {[%emt 0:02:38]} Bxd1 {[%emt 0:09:36]} 16. Rxd1 {[%emt 0:00:24]} Qb6 {[%emt 0:02:38]} 17. Bxe5 {[%emt 0:08:31]} Bxe5 {[%emt 0:00:43]} 18. Bxc6 {[%emt 0:00:21]} Rab8 {[%emt 0:09:57]} 19. Bb5 {[%emt 0:01:57]} a6 {[%emt 0:03:22]} 20. Qxa6 {[%emt 0:00:07]} Qxa6 {[%emt 0:00:01]} 21. Bxa6 {[%emt 0:00:09]} Rxb2 {[%emt 0:00:29]} 22. Ne4 {[%emt 0:03:56]} Ra8 {[%emt 0:00:34]} 23. Bb5 {[%emt 0:00:50]} Raxa2 {[%emt 0:00:20]} 24. Bc6 {[%emt 0:01:33]} f5 {[%emt 0:01:22]} 25. Ng5 {[%emt 0:07:27]} Rxf2 {[%emt 0:04:20]} 26. Nf3 {[%emt 0:00:12]} Rg2+ {[%emt 0:01:31]} 27. Kh1 {[%emt 0:00:06]} Rgc2 {[%emt 0:00:55]} 28. c5 {[%emt 0:03:54]} Ra1 {[%emt 0:09:31]} 29. Rxa1 {[%emt 0:00:47]} Bxa1 {[%emt 0:00:02]} 30. Bd5+ {[%emt 0:00:21]} Kg7 {[%emt 0:00:10]} 31. cxd6 {[%emt 0:01:32]} Rc1+ {[%emt 0:00:15]} 32. Kg2 {[%emt 0:00:05]} Rd1 {[%emt 0:01:13]} 33. Bb7 $19 {[%emt 0:00:25]} Rxd6 {[%emt 0:00:35]} 34. h4 {[%emt 0:00:24]} Rb6 {[%emt 0:00:53]} 35. Bd5 {[%emt 0:00:17]} Bf6 {[%emt 0:00:29]} 36. Bc4 {[%emt 0:01:23]} Rb4 {[%emt 0:00:23]} 37. Be6 {[%emt 0:00:17]} Rb6 {[%emt 0:00:53]} 38. Bd7 {[%emt 0:00:10]} Rb2+ {[%emt 0:01:09]} 39. Kf1 {[%emt 0:00:53]} Be7 {[%emt 0:01:10]} 40. Ng1 {[%emt 0:01:05]} Bd6 {[%emt 0:01:40]} 41. Ne2 {[%emt 0:00:21]} Kf6 {[%emt 0:00:37]} 42. Bc6 {[%emt 0:01:23]} Be5 {[%emt 0:00:32]} 43. Bd5 {[%emt 0:00:44]} h6 {[%emt 0:00:49]} 44. Bc4 {[%emt 0:00:45]} Rc2 {[%emt 0:01:04]} 45. Bb5 {[%emt 0:00:13]} Rb2 {[%emt 0:00:23]} 46. Bc4 {[%emt 0:00:16]} Rb4 {[%emt 0:00:09]} 47. Bd5 {[%emt 0:01:29]} f4 {[%emt 0:01:08]} 48. g4 {[%emt 0:07:55]} g5 {[%emt 0:00:09]} 49. h5 {[%emt 0:00:22]} Bd4 {[%emt 0:00:21]} 50. Kg2 {[%emt 0:00:58]} Ke5 {[%emt 0:00:52]} 51. Bc6 {[%emt 0:00:10]} Rb2 {[%emt 0:00:36]} 52. Kf1 {[%emt 0:00:39]} Be3 {[%emt 0:00:31]} 53. Bf3 {[%emt 0:02:01]} Bd2 {[%emt 0:00:23]} 54. Bc6 {[%emt 0:00:59]} Kd6 {[%emt 0:00:35]} 55. Ba8 {[%emt 0:00:33]} Kc5 {[%emt 0:00:25]} 56. Be4 {[%emt 0:01:09]} Kc4 {[%emt 0:00:38]} 57. Kg2 {[%emt 0:00:30]} Be3 {[%emt 0:00:10]} 58. Kf3 {[%emt 0:00:51]} Rd2 {[%emt 0:00:34]} 59. Bb7 {[%emt 0:01:13]} Rd1 {[%emt 0:00:46]} 60. Ba6+ {[%emt 0:02:49]} Kb4 {[%emt 0:00:29]} 61. Ke4 {[%emt 0:01:04]} Rd2 {[%emt 0:00:32]} 62. Kf3 {[%emt 0:00:43]} Kb3 {[%emt 0:00:33]} 63. Bb5 {[%emt 0:00:55]} Kb4 {[%emt 0:00:02]} 64. Ba6 {[%emt 0:00:29]} Ra2 {[%emt 0:00:50]} 65. Bd3 {[%emt 0:01:05]} Kc5 {[%emt 0:00:34]} 66. Be4 {[%emt 0:03:02]} Kd6 {[%emt 0:00:33]} 67. Bd3 {[%emt 0:01:40]} Ke5 {[%emt 0:00:21]} 68. Bb5 {[%emt 0:00:27]} Ra1 {[%emt 0:00:32]} 69. Kg2 {[%emt 0:00:26]} Ke4 {[%emt 0:00:39]} 70. Nc3+ {[%emt 0:00:20]} Ke5 {[%emt 0:00:26]} 71. Ne2 {[%emt 0:00:17]} Bc5 {[%emt 0:00:20]} 72. Bc6 {[%emt 0:01:13]} Ra3 {[%emt 0:00:18]} 73. Bb7 {[%emt 0:01:31]} Rb3 {[%emt 0:00:41]} 74. Bc6 {[%emt 0:00:18]} Re3 {[%emt 0:00:08]} 75. Bf3 {[%emt 0:00:17]} Bb6 {[%emt 0:01:01]} 76. Kf2 {[%emt 0:01:12]} Ba7 {[%emt 0:00:32]} 77. Kg2 {[%emt 0:00:25]} Kd6 {[%emt 0:00:19]} 78. Kf2 {[%emt 0:06:17]} Kc5 {[%emt 0:00:35]} 79. Bb7 {[%emt 0:01:04]} Kb4 {[%emt 0:00:19]} 80. Bf3 {[%emt 0:00:30]} Kb3 {[%emt 0:00:39]} 81. Kg2 {[%emt 0:00:48]} Kc2 {[%emt 0:00:17]} 82. Ng1 {[%emt 0:00:40]} Re1 {[%emt 0:00:51]} 83. Nh3 {[%emt 0:00:31]} Kd2 {[%emt 0:00:32]} 84. Bd5 {[%emt 0:00:27]} Bc5 {[%emt 0:00:28]} 85. Bc6 {[%emt 0:00:22]} Bd4 {[%emt 0:00:13]} 86. Bd5 {[%emt 0:00:19]} Re2+ {[%emt 0:00:32]} 87. Kh1 {[%emt 0:00:24]} Re3 {[%emt 0:00:27]} 88. Kh2 {[%emt 0:01:15]} Rg3 {[%emt 0:00:33]} 89. Be6 {[%emt 0:00:10]} Re3 {[%emt 0:00:44]} 90. Bc4 {[%emt 0:00:57]} Re1 {[%emt 0:00:24]} 91. Kg2 {[%emt 0:01:12]} Bb6 {[%emt 0:00:37]} 92. Bd5 {[%emt 0:00:17]} Re3 {[%emt 0:00:31]} 93. Bc6 {[%emt 0:00:31]} Rg3+ {[%emt 0:00:14]} 0-1

[Event "ISR Youth-Ch Finals 2021 U18"]
[Site "Ramat Hasharon"]
[Date "2021.03.23"]
[Round "5.8"]
[White "Levitan, Ronit"]
[Black "Sheinkman, Lidan"]
[Result "1-0"]
[ECO "B22"]
[WhiteElo "2048"]
[BlackElo "1895"]
[Annotator "NA"]
[PlyCount "107"]
[EventDate "2021.03.19"]
[EventType "swiss"]
[EventCountry "ISR"]
[SourceTitle "playchess.com"]
[Source "ChessBase"]
[SourceQuality "1"]
[TimeControl "5400+30"]

1. e4 {[%emt 0:00:00]} c5 {[%emt 0:06:44]} 2. c3 {[%emt 0:00:19]} g6 {[%emt 0:01:40]} 3. d4 {[%emt 0:00:07]} cxd4 {[%emt 0:00:03]} 4. cxd4 {[%emt 0:00:06]} d5 {[%emt 0:00:07]} 5. e5 {[%emt 0:00:05]} Bg7 {[%emt 0:00:59]} 6. h3 {[%emt 0:00:28]} Nc6 {[%emt 0:03:43]} 7. Nc3 {[%emt 0:00:21]} Nh6 {[%emt 0:02:35]} 8. g4 {[%emt 0:00:08]} O-O {[%emt 0:02:10]} 9. f4 {[%emt 0:00:39]} f6 {[%emt 0:06:32]} 10. Bg2 {[%emt 0:00:23]} e6 {[%emt 0:09:56]} 11. Nf3 {[%emt 0:00:36]} Nf7 {[%emt 0:02:48]} 12. O-O {[%emt 0:00:32]} Bd7 {[%emt 0:10:37]} 13. Be3 {[%emt 0:02:28]} Rc8 {[%emt 0:05:34]} 14. Qd2 {[%emt 0:04:25]} a6 {[%emt 0:04:58]} 15. h4 {[%emt 0:14:24]} f5 {[%emt 0:18:47]} 16. g5 {[%emt 0:00:35]} h5 {[%emt 0:01:33]} 17. gxh6 {[%emt 0:00:53]} Bxh6 {[%emt 0:01:56]} 18. Kf2 {[%emt 0:08:44]} b5 $16 {[%emt 0:01:58]} 19. b3 {[%emt 0:02:13]} Qa5 {[%emt 0:02:10]} 20. Rac1 {[%emt 0:04:14]} Ne7 {[%emt 0:01:42]} 21. Ne1 {[%emt 0:10:10]} b4 {[%emt 0:03:20]} 22. Ne2 {[%emt 0:01:29]} Bb5 {[%emt 0:00:02]} 23. Nd3 {[%emt 0:04:39]} Bxd3 {[%emt 0:03:35]} 24. Qxd3 {[%emt 0:00:17]} Qb5 {[%emt 0:00:57]} 25. Qxb5 {[%emt 0:00:57]} axb5 {[%emt 0:00:15]} 26. Bd2 {[%emt 0:00:42]} Nc6 {[%emt 0:00:54]} 27. Rh1 {[%emt 0:05:56]} Ncxe5 {[%emt 0:04:59]} 28. dxe5 {[%emt 0:00:40]} Nxe5 {[%emt 0:00:03]} 29. fxe5 {[%emt 0:01:39]} Bxd2 {[%emt 0:00:07]} 30. Rxc8 {[%emt 0:00:48]} Rxc8 {[%emt 0:00:01]} 31. Nd4 {[%emt 0:01:35]} Kf7 {[%emt 0:02:29]} 32. h5 {[%emt 0:06:21]} gxh5 {[%emt 0:01:20]} 33. Rxh5 {[%emt 0:00:02]} Bc3 {[%emt 0:00:17]} 34. Ke3 {[%emt 0:02:48]} Bxd4+ {[%emt 0:01:34]} 35. Kxd4 {[%emt 0:00:06]} Rc2 {[%emt 0:00:01]} 36. Bf1 {[%emt 0:00:48]} Rxa2 {[%emt 0:00:04]} 37. Bxb5 {[%emt 0:00:32]} Rb2 {[%emt 0:00:18]} 38. Ba4 {[%emt 0:03:40]} Rc2 {[%emt 0:00:22]} 39. Rh7+ {[%emt 0:00:18]} Kf8 {[%emt 0:00:28]} 40. Rb7 {[%emt 0:01:13]} Re2 {[%emt 0:00:33]} 41. Rxb4 {[%emt 0:01:36]} Re4+ {[%emt 0:01:11]} 42. Kc5 {[%emt 0:00:09]} Rxe5 {[%emt 0:00:02]} 43. Kd6 {[%emt 0:00:06]} Re3 {[%emt 0:01:34]} 44. Rd4 {[%emt 0:04:48]} Kf7 {[%emt 0:00:30]} 45. b4 {[%emt 0:00:22]} Ra3 {[%emt 0:01:02]} 46. b5 {[%emt 0:01:43]} e5 {[%emt 0:00:00]} 47. Kxe5 {[%emt 0:00:15]} Ke7 {[%emt 0:00:00]} 48. Kxd5 {[%emt 0:00:17]} Kd7 {[%emt 0:00:02]} 49. Kc5+ {[%emt 0:00:19]} Kc8 {[%emt 0:00:08]} 50. Kb6 {[%emt 0:01:16]} Re3 {[%emt 0:00:49]} 51. Ka6 {[%emt 0:01:45]} Re5 {[%emt 0:01:28]} 52. b6 {[%emt 0:00:30]} Re7 {[%emt 0:00:29]} 53. Rh4 {[%emt 0:01:25]} Re4 {[%emt 0:00:33]} 54. Rh8+ {[%emt 0:00:10]} 1-0

[Event "ISR Youth-Ch Finals 2021 U18"]
[Site "Ramat Hasharon"]
[Date "2021.03.23"]
[Round "5.9"]
[White "Friedland, Eldar"]
[Black "Kochavi, Ori"]
[Result "0-1"]
[ECO "E46"]
[WhiteElo "2034"]
[BlackElo "2273"]
[Annotator "ChessBase"]
[PlyCount "74"]
[EventDate "2021.03.19"]
[EventType "swiss"]
[EventCountry "ISR"]
[SourceTitle "playchess.com"]
[Source "ChessBase"]
[SourceQuality "1"]
[TimeControl "5400+30"]

1. d4 {[%emt 0:12:32]} Nf6 {[%emt 0:10:21]} 2. c4 {[%emt 0:00:00]} e6 {[%emt 0:00:00]} 3. Nc3 {[%emt 0:00:00]} Bb4 {[%emt 0:00:00]} 4. e3 {[%emt 0:00:00]} O-O {[%emt 0:00:00]} 5. Nge2 {[%emt 0:00:00]} Re8 {[%emt 0:00:00]} 6. a3 {[%emt 0:00:00]} Bf8 {[%emt 0:00:00]} 7. Ng3 {[%emt 0:00:00]} d5 {[%emt 0:00:00]} 8. cxd5 {[%emt 0:00:00]} exd5 {[%emt 0:00:00]} 9. Be2 {[%emt 0:00:00]} b6 {[%emt 0:00:00]} 10. b4 {[%emt 0:00:00]} c6 {[%emt 0:00:00]} 11. O-O {[%emt 0:00:00]} Ba6 {[%emt 0:00:00]} 12. Bxa6 {[%emt 0:01:05]} Nxa6 {[%emt 0:00:00]} 13. Qd3 {[%emt 0:05:43]} Nc7 {[%emt 0:00:00]} 14. Bb2 {[%emt 0:01:53]} h5 {[%emt 0:00:00]} 15. Rac1 {[%emt 0:07:23]} g6 {[%emt 0:00:00]} 16. Nb1 {[%emt 0:04:32]} h4 {[%emt 0:29:47]} 17. Ne2 {[%emt 0:00:14]} h3 {[%emt 0:00:13]} 18. g3 {[%emt 0:04:38]} Qd7 {[%emt 0:00:49]} 19. Nd2 {[%emt 0:01:04]} Bh6 {[%emt 0:04:28]} 20. Nf3 {[%emt 0:09:40]} Qg4 {[%emt 0:03:16]} 21. Ne1 {[%emt 0:11:55]} Re6 {[%emt 0:08:08]} 22. Nf4 {[%emt 0:06:07]} Bxf4 {[%emt 0:00:12]} 23. exf4 {[%emt 0:34:44]} Rae8 {[%emt 0:02:25]} 24. Nf3 {[%emt 0:00:00]} Nh5 {[%emt 0:01:37]} 25. Ne5 {[%emt 0:00:00]} Nxf4 {[%emt 0:00:23]} 26. Qe3 {[%emt 0:00:00]} Ne2+ {[%emt 0:00:14]} 27. Kh1 {[%emt 0:00:00]} Rxe5 {[%emt 0:01:26]} 28. dxe5 {[%emt 0:00:00]} Nxc1 {[%emt 0:00:04]} 29. Rxc1 {[%emt 0:00:00]} Rd8 {[%emt 0:14:39]} 30. f3 {[%emt 0:00:00]} d4 {[%emt 0:00:21]} 31. Rd1 {[%emt 0:00:00]} Qf5 {[%emt 0:01:16]} 32. Qe4 {[%emt 0:00:00]} Qxe4 {[%emt 0:00:17]} 33. fxe4 {[%emt 0:00:00]} c5 {[%emt 0:00:02]} 34. bxc5 {[%emt 0:00:00]} bxc5 {[%emt 0:00:03]} 35. Kg1 {[%emt 0:00:00]} Re8 {[%emt 0:27:29]} 36. Rc1 {[%emt 0:00:00]} Ne6 {[%emt 0:00:30]} 37. Kf1 {[%emt 0:00:00]} Rb8 {[%emt 0:00:30]} 0-1

[Event "ISR Youth-Ch Finals 2021 U18"]
[Site "Ramat Hasharon"]
[Date "2021.03.23"]
[Round "5.10"]
[White "Sobel, Ido"]
[Black "Mondri, Nadav"]
[Result "1-0"]
[ECO "C27"]
[WhiteElo "1885"]
[BlackElo "1803"]
[Annotator "NA"]
[PlyCount "61"]
[EventDate "2021.03.19"]
[EventType "swiss"]
[EventCountry "ISR"]
[SourceTitle "playchess.com"]
[Source "ChessBase"]
[SourceQuality "1"]
[TimeControl "5400+30"]

1. e4 {[%emt 0:00:00]} e5 {[%emt 0:00:00]} 2. Bc4 {[%emt 0:00:00]} Bc5 {[%emt 0:00:25]} 3. d3 {[%emt 0:00:05]} Nf6 {[%emt 0:02:01]} 4. Nc3 {[%emt 0:00:12]} O-O {[%emt 0:00:35]} 5. f4 {[%emt 0:03:22]} Nc6 {[%emt 0:05:42]} 6. Nf3 {[%emt 0:01:55]} d6 {[%emt 0:05:35]} 7. Na4 {[%emt 0:03:51]} Bb6 {[%emt 0:00:46]} 8. Nxb6 {[%emt 0:00:09]} axb6 {[%emt 0:00:07]} 9. a3 {[%emt 0:01:14]} Re8 {[%emt 0:14:19]} (9... d5 $11 10. exd5 (10. fxe5 dxc4 11. exf6 Qxf6 $15) 10... Nxd5) 10. O-O {[%emt 0:02:23]} Be6 {[%emt 0:04:33]} 11. Bxe6 {[%emt 0:02:59]} Rxe6 {[%emt 0:00:24]} 12. f5 {[%emt 0:00:38]} Re8 {[%emt 0:00:10]} 13. Bg5 {[%emt 0:01:37]} d5 $16 {[%emt 0:01:51] [#]} (13... Nb8 $11) 14. exd5 $1 {[%emt 0:03:27]} Qxd5 {[%emt 0:00:22]} 15. Bxf6 {[%emt 0:00:03]} gxf6 {[%emt 0:00:16]} 16. Nd2 {[%emt 0:04:31]} Kf8 {[%emt 0:04:25]} 17. Ne4 {[%emt 0:01:56]} Ke7 {[%emt 0:00:48]} 18. Qe1 {[%emt 0:05:22]} Nb8 {[%emt 0:00:25]} 19. Qb4+ {[%emt 0:01:30]} c5 {[%emt 0:00:54]} 20. Qxb6 {[%emt 0:00:03]} Nd7 {[%emt 0:00:18]} 21. Qb5 {[%emt 0:01:10]} Rg8 {[%emt 0:01:42]} 22. Rf3 {[%emt 0:13:32]} Rg7 {[%emt 0:01:18]} 23. Re1 {[%emt 0:02:10]} Rag8 {[%emt 0:03:18]} 24. Re2 {[%emt 0:00:04]} Qd4+ {[%emt 0:01:16]} 25. Kh1 {[%emt 0:03:18]} b6 {[%emt 0:01:54]} 26. h3 {[%emt 0:03:06]} Qd5 {[%emt 0:04:48]} 27. c3 {[%emt 0:04:34]} Qa2 {[%emt 0:03:57]} 28. Qc6 {[%emt 0:04:14]} Qb1+ {[%emt 0:00:21]} 29. Kh2 {[%emt 0:00:02]} Qd1 {[%emt 0:00:33]} 30. Qd6+ {[%emt 0:00:02]} Ke8 {[%emt 0:00:27]} 31. Nxf6+ {[%emt 0:38:01]} 1-0

[Event "ISR Youth-Ch Finals 2021 U18"]
[Site "Ramat Hasharon"]
[Date "2021.03.23"]
[Round "5.11"]
[White "Gov, Guy"]
[Black "Sobel, Alon"]
[Result "1-0"]
[ECO "A03"]
[WhiteElo "2095"]
[BlackElo "1825"]
[Annotator "ChessBase"]
[PlyCount "73"]
[EventDate "2021.03.19"]
[EventType "swiss"]
[EventCountry "ISR"]
[SourceTitle "playchess.com"]
[Source "ChessBase"]
[SourceQuality "1"]
[TimeControl "5400+30"]

1. f4 {[%emt 0:03:07]} d5 {[%emt 0:00:00]} 2. Nf3 {[%emt 0:00:00]} Nf6 {[%emt 0:01:45]} 3. e3 {[%emt 0:00:00]} c5 {[%emt 0:02:25]} 4. b3 {[%emt 0:00:49]} Nc6 {[%emt 0:02:37]} 5. Bb5 {[%emt 0:01:24]} Bd7 {[%emt 0:01:42]} 6. Bb2 {[%emt 0:00:20]} a6 {[%emt 0:01:50]} 7. Bxc6 {[%emt 0:00:34]} Bxc6 {[%emt 0:00:47]} 8. Ne5 {[%emt 0:00:21]} g6 {[%emt 0:05:16]} 9. Nxc6 {[%emt 0:02:03]} bxc6 {[%emt 0:00:18]} 10. d3 {[%emt 0:00:47]} Bg7 {[%emt 0:00:42]} 11. Nd2 {[%emt 0:05:34]} O-O {[%emt 0:02:13]} 12. O-O {[%emt 0:02:52]} Re8 {[%emt 0:02:42]} 13. Nf3 {[%emt 0:20:23]} Nd7 {[%emt 0:08:44]} 14. Bxg7 {[%emt 0:01:34]} Kxg7 {[%emt 0:00:22]} 15. Qe1 {[%emt 0:04:47]} e5 {[%emt 0:06:11]} 16. fxe5 {[%emt 0:10:57]} Nxe5 {[%emt 0:00:18]} 17. Qc3 {[%emt 0:03:38]} Qf6 {[%emt 0:06:56]} 18. d4 {[%emt 0:08:09]} cxd4 {[%emt 0:01:01]} 19. exd4 {[%emt 0:03:41]} Nxf3+ {[%emt 0:00:14]} 20. Rxf3 {[%emt 0:00:02]} Qe6 {[%emt 0:00:14]} 21. Raf1 {[%emt 0:00:17]} Re7 {[%emt 0:00:41]} 22. Rf6 {[%emt 0:01:11]} Qe4 {[%emt 0:00:27]} 23. Rxc6 {[%emt 0:00:34]} Rae8 {[%emt 0:54:05]} 24. Rxa6 {[%emt 0:28:56]} f5 {[%emt 0:00:30]} 25. Rc6 {[%emt 0:00:00]} Kh6 {[%emt 0:00:00]} 26. Qd2+ {[%emt 0:00:00]} Kg7 {[%emt 0:00:00]} 27. h3 {[%emt 0:00:00]} h6 {[%emt 0:00:00]} 28. Rf4 {[%emt 0:00:00]} Qe1+ {[%emt 0:00:00]} 29. Qxe1 {[%emt 0:00:00]} Rxe1+ {[%emt 0:00:00]} 30. Rf1 {[%emt 0:00:00]} R1e2 {[%emt 0:00:00]} 31. Rf2 {[%emt 0:00:00]} Re1+ {[%emt 0:00:00]} 32. Kh2 {[%emt 0:00:00]} Rd1 {[%emt 0:00:00]} 33. c3 {[%emt 0:00:00]} Ree1 {[%emt 0:00:00]} 34. a4 {[%emt 0:00:00]} Rh1+ {[%emt 0:00:00]} 35. Kg3 {[%emt 0:00:00]} h5 {[%emt 0:00:00]} 36. Kf4 {[%emt 0:00:00]} Kh6 {[%emt 0:00:00]} 37. Ke5 {[%emt 0:00:00]} 1-0

[Event "ISR Youth-Ch Finals 2021 U18"]
[Site "Ramat Hasharon"]
[Date "2021.03.24"]
[Round "6.10"]
[White "Mondri, Nadav"]
[Black "Sheinkman, Lidan"]
[Result "0-1"]
[ECO "C05"]
[WhiteElo "1803"]
[BlackElo "1895"]
[Annotator "NA RC"]
[PlyCount "82"]
[EventDate "2021.03.19"]
[EventType "swiss"]
[EventCountry "ISR"]
[SourceTitle "playchess.com"]
[Source "ChessBase"]
[SourceQuality "1"]
[TimeControl "5400+30"]

1. e4 {[%emt 0:00:00]} e6 {[%emt 0:03:39]} 2. d4 {[%emt 0:00:37]} d5 {[%emt 0:00:01]} 3. Nd2 {[%emt 0:01:19]} Nf6 {[%emt 0:00:21]} 4. Bd3 {[%emt 0:00:53]} c5 {[%emt 0:00:32]} 5. c3 {[%emt 0:00:29]} Nc6 {[%emt 0:00:05]} 6. Ne2 {[%emt 0:01:19]} cxd4 {[%emt 0:01:57]} 7. cxd4 {[%emt 0:05:09]} dxe4 {[%emt 0:00:27]} 8. Nxe4 {[%emt 0:01:50]} Be7 {[%emt 0:00:06]} 9. O-O {[%emt 0:02:20]} O-O {[%emt 0:00:24]} 10. Be3 {[%emt 0:07:25]} Nb4 {[%emt 0:09:11]} 11. Nxf6+ {[%emt 0:04:42]} Bxf6 {[%emt 0:00:11]} 12. Be4 {[%emt 0:00:26]} Nd5 {[%emt 0:01:49]} 13. Qc2 {[%emt 0:10:55]} g6 {[%emt 0:03:21]} 14. Rac1 {[%emt 0:06:10]} b6 $11 {[%emt 0:03:04]} 15. Bxd5 {[%emt 0:04:26]} Qxd5 {[%emt 0:00:01]} 16. Qc6 {[%emt 0:01:14]} Qxc6 {[%emt 0:03:34]} 17. Rxc6 {[%emt 0:00:08]} Ba6 {[%emt 0:00:15]} 18. Rc2 {[%emt 0:04:12]} Rac8 {[%emt 0:05:05]} 19. Rd2 {[%emt 0:03:11]} Rfd8 {[%emt 0:03:55]} 20. Rfd1 {[%emt 0:01:45]} Bxe2 {[%emt 0:00:31]} 21. Rxe2 {[%emt 0:03:12]} Bxd4 {[%emt 0:00:02]} 22. Red2 {[%emt 0:04:13]} Bf6 {[%emt 0:00:16]} 23. Rd7 {[%emt 0:02:52]} Rxd7 {[%emt 0:11:19]} 24. Rxd7 {[%emt 0:00:08]} Rd8 {[%emt 0:00:12]} 25. Rxd8+ {[%emt 0:01:49]} Bxd8 {[%emt 0:52:12]} 26. Kf1 {[%emt 0:00:20]} Bc7 {[%emt 0:00:00]} 27. h3 {[%emt 0:00:21]} Kg7 {[%emt 0:00:00]} 28. Ke2 {[%emt 0:00:16]} Kf6 {[%emt 0:00:00]} 29. Kd3 {[%emt 0:00:30]} Ke5 {[%emt 0:00:00]} 30. Kc4 {[%emt 0:00:30]} a6 {[%emt 0:00:00]} 31. a4 {[%emt 0:02:11]} f5 {[%emt 0:00:00]} 32. g3 {[%emt 0:02:24]} Ke4 {[%emt 0:03:30]} 33. b4 {[%emt 0:01:23]} e5 {[%emt 0:00:00]} 34. Bg5 {[%emt 0:00:40]} f4 {[%emt 0:00:00]} 35. gxf4 {[%emt 0:00:52]} exf4 {[%emt 0:00:00]} 36. Bh4 {[%emt 0:03:13]} h6 {[%emt 0:00:00]} 37. Bf6 {[%emt 0:00:27]} g5 {[%emt 0:00:00]} 38. Bg7 {[%emt 0:00:48]} h5 {[%emt 0:00:00]} 39. Bf6 {[%emt 0:00:10]} g4 {[%emt 0:00:00]} 40. hxg4 {[%emt 0:00:16]} hxg4 {[%emt 0:00:00]} 41. Bh4 {[%emt 0:00:06]} f3 {[%emt 0:00:00]} 0-1

[Event "ISR Youth-Ch Finals 2021 U18"]
[Site "Ramat Hasharon"]
[Date "2021.03.24"]
[Round "7.4"]
[White "Kochavi, Ori"]
[Black "Milikow, Yoav"]
[Result "0-1"]
[ECO "A35"]
[WhiteElo "2273"]
[BlackElo "2302"]
[Annotator "RC"]
[PlyCount "138"]
[EventDate "2021.03.19"]
[EventType "swiss"]
[EventCountry "ISR"]
[SourceTitle "playchess.com"]
[Source "ChessBase"]
[SourceQuality "1"]
[TimeControl "5400+30"]

1. c4 {[%emt 0:00:00]} c5 {[%emt 0:00:00]} 2. Nc3 {[%emt 0:00:17]} Nc6 {[%emt 0:02:33]} 3. Nf3 {[%emt 0:00:22]} g6 {[%emt 0:00:55]} 4. d4 {[%emt 0:01:43]} cxd4 {[%emt 0:00:28]} 5. Nxd4 {[%emt 0:00:05]} Bg7 {[%emt 0:00:10]} 6. Nxc6 {[%emt 0:00:57]} dxc6 {[%emt 0:04:57]} 7. Qxd8+ {[%emt 0:02:27]} Kxd8 {[%emt 0:01:49]} 8. Bf4 {[%emt 0:12:24]} Be6 {[%emt 0:03:20]} 9. e4 {[%emt 0:01:54]} Nf6 {[%emt 0:03:28]} 10. Be5 {[%emt 0:00:49]} Kc8 {[%emt 0:00:33]} 11. O-O-O {[%emt 0:10:19]} b6 {[%emt 0:00:41]} 12. f4 {[%emt 0:07:39]} Kb7 {[%emt 0:00:52]} 13. Be2 {[%emt 0:00:24]} h5 {[%emt 0:01:53]} 14. Rhf1 {[%emt 0:07:39]} Rad8 {[%emt 0:06:27]} 15. f5 {[%emt 0:12:32]} Bc8 {[%emt 0:00:50]} 16. Bd3 {[%emt 0:06:42]} gxf5 {[%emt 0:02:42]} 17. exf5 {[%emt 0:00:05]} Rhg8 {[%emt 0:00:34]} 18. Bf4 {[%emt 0:04:15]} Ng4 {[%emt 0:05:08]} 19. Bc2 {[%emt 0:02:42]} Bxc3 {[%emt 0:04:36]} 20. bxc3 {[%emt 0:00:46]} Rxd1+ {[%emt 0:01:21]} 21. Rxd1 {[%emt 0:03:09]} e5 {[%emt 0:00:35]} 22. fxe6 {[%emt 0:03:30]} Bxe6 {[%emt 0:00:11]} 23. h4 {[%emt 0:07:45]} Bxc4 {[%emt 0:04:02]} 24. Rd7+ {[%emt 0:00:52]} Ka6 {[%emt 0:00:17]} 25. a4 {[%emt 0:02:09]} Nf6 {[%emt 0:01:46]} 26. Rd4 {[%emt 0:00:03]} Be6 {[%emt 0:00:34]} 27. Bg5 {[%emt 0:01:00]} Nd7 {[%emt 0:02:18]} 28. g3 {[%emt 0:03:51]} Nc5 {[%emt 0:01:32]} 29. Kb2 {[%emt 0:00:29]} Bd5 {[%emt 0:01:05]} 30. Bd1 {[%emt 0:00:31]} Ne6 {[%emt 0:00:29]} 31. Bxh5 {[%emt 0:02:03]} Nxd4 {[%emt 0:04:01]} 32. cxd4 {[%emt 0:00:08]} Re8 {[%emt 0:00:43]} 33. Bd1 {[%emt 0:00:29]} Re1 {[%emt 0:00:40]} 34. Bg4 {[%emt 0:01:54]} Kb7 {[%emt 0:01:17]} 35. h5 {[%emt 0:00:13]} Be4 {[%emt 0:01:06]} 36. h6 {[%emt 0:05:53]} Bh7 {[%emt 0:01:14]} 37. Bh5 {[%emt 0:00:00]} Rf1 {[%emt 0:02:56]} 38. Bf4 {[%emt 0:00:00]} f6 {[%emt 0:00:18]} 39. Bf7 {[%emt 0:00:00]} Rd1 {[%emt 0:01:42]} 40. Kc3 {[%emt 0:00:00]} a5 {[%emt 0:01:08]} 41. Bc4 {[%emt 0:00:00]} Ka7 {[%emt 0:02:55]} 42. Bd6 {[%emt 0:00:00]} Rc1+ {[%emt 0:02:35]} 43. Kb3 {[%emt 0:00:04]} Rh1 {[%emt 0:01:22]} 44. Bf4 {[%emt 0:00:33]} Rb1+ {[%emt 0:02:41]} 45. Kc3 {[%emt 0:00:04]} b5 {[%emt 0:01:17]} 46. axb5 {[%emt 0:00:04]} cxb5 {[%emt 0:00:07]} 47. Be6 {[%emt 0:00:02]} Rd1 {[%emt 0:00:38]} 48. d5 {[%emt 0:00:18]} Rd3+ {[%emt 0:00:40]} 49. Kb2 {[%emt 0:00:01]} Kb6 {[%emt 0:31:04]} 50. d6 {[%emt 0:05:54]} Kc6 {[%emt 0:00:00]} 51. Bb3 {[%emt 0:00:00]} Rd4 {[%emt 0:00:00]} 52. Kc3 {[%emt 0:00:00]} Rxf4 {[%emt 0:00:00]} 53. gxf4 {[%emt 0:01:30]} Kxd6 {[%emt 0:00:00]} 54. Bc2 {[%emt 0:00:00]} b4+ {[%emt 0:00:00]} 55. Kd2 {[%emt 0:00:00]} f5 {[%emt 0:00:00]} 56. Bb3 {[%emt 0:00:00]} Kc5 57. Kd3 {[%emt 0:02:00]} Kb5 {[%emt 0:00:00]} 58. Bf7 {[%emt 0:00:00]} Ka4 {[%emt 0:00:00]} 59. Kc2 {[%emt 0:00:00]} Ka3 {[%emt 0:00:00]} 60. Kb1 {[%emt 0:00:00]} b3 {[%emt 0:00:00]} 61. Ka1 {[%emt 0:00:00]} Kb4 62. Kb2 {[%emt 0:00:24]} a4 63. Kc1 {[%emt 0:01:03]} Kc3 64. Kb1 {[%emt 0:02:03]} a3 {[%emt 0:07:30]} 65. Ka1 {[%emt 0:00:00]} Kc2 {[%emt 0:00:00]} 66. Bxb3+ {[%emt 0:00:00]} Kxb3 {[%emt 0:00:00]} 67. Kb1 {[%emt 0:00:00]} Bg8 {[%emt 0:00:00]} 68. Ka1 {[%emt 0:00:00]} Kc3 {[%emt 0:00:00]} 69. h7 Bxh7 {[%emt 0:00:00]} 0-1